[Event "Titled Tuesday Blitz July 05 Early 2022"]
[White "Bazeev, German"]
[Black "Fedoseev, Vladimir"]
[WhiteFideId "24119350"]
[BlackFideId "24130737"]
[WhiteElo "2493"]
[BlackElo "2726"]
[Result "0-1"]
[Round "04"]
[TimeControl "180+1"]
[Date "2022.07.05"]
[WhiteClock "0:00:59"]
[BlackClock "0:00:26"]

1. d4 {[%clk 0:03:00]}  Nf6 {[%clk 0:01:30]} 2. Nf3 {[%clk 0:02:40]}  g6 {[%clk 0:01:28]} 3. a4 {[%clk 0:02:37]}  Bg7 {[%clk 0:01:27]} 4. g3 {[%clk 0:02:37]}  O-O {[%clk 0:01:26]} 5. Bg2 {[%clk 0:02:38]}  c5 {[%clk 0:01:22]} 6. dxc5 {[%clk 0:02:35]}  Na6 {[%clk 0:01:21]} 7. O-O {[%clk 0:02:33]}  Nxc5 {[%clk 0:01:21]} 8. Be3 {[%clk 0:02:33]}  d6 {[%clk 0:01:20]} 9. c3 {[%clk 0:02:33]}  Qc7 {[%clk 0:01:15]} 10. Nbd2 {[%clk 0:02:24]}  Be6 {[%clk 0:01:09]} 11. a5 {[%clk 0:02:16]}  a6 {[%clk 0:01:04]} 12. Nd4 {[%clk 0:02:11]}  Bd5 {[%clk 0:01:03]} 13. Rc1 {[%clk 0:01:48]}  Bxg2 {[%clk 0:01:02]} 14. Kxg2 {[%clk 0:01:48]}  Nd5 {[%clk 0:01:02]} 15. Nc4 {[%clk 0:01:37]}  Nd7 {[%clk 0:01:01]} 16. Qa4 {[%clk 0:01:32]}  Rfc8 {[%clk 0:00:56]} 17. Rfd1 {[%clk 0:01:21]}  Qxc4 {[%clk 0:00:39]} 18. Qxd7 {[%clk 0:01:20]}  Nxe3+ {[%clk 0:00:39]} 19. fxe3 {[%clk 0:01:20]}  Rc7 {[%clk 0:00:39]} 20. Qg4 {[%clk 0:01:08]}  e5 {[%clk 0:00:32]} 21. b3 {[%clk 0:01:08]}  Qd5+ {[%clk 0:00:32]} 22. Nf3 {[%clk 0:01:03]}  Qxb3 {[%clk 0:00:33]} 23. Qe4 {[%clk 0:01:01]}  Rd8 {[%clk 0:00:29]} 24. Rb1 {[%clk 0:00:58]}  Qxc3 {[%clk 0:00:26]} 25. Rdc1 {[%clk 0:00:59]}  Qxa5 {[%clk 0:00:26]} 0-1


[Site "https://www.chess.com"]

[Event "Titled Tuesday Blitz July 05 Early 2022"]
[White "Bortnyk, Olexandr"]
[Black "Xu, Yi"]
[WhiteFideId "14120828"]
[BlackFideId "8605564"]
[WhiteElo "2723"]
[BlackElo "2471"]
[Result "1/2-1/2"]
[Round "04"]
[TimeControl "180+1"]
[Date "2022.07.05"]
[WhiteClock "0:00:12"]
[BlackClock "0:00:08"]

1. d4 {[%clk 0:03:00]}  Nf6 {[%clk 0:03:00]} 2. Nc3 {[%clk 0:03:00]}  d5 {[%clk 0:03:00]} 3. Bf4 {[%clk 0:03:00]}  a6 {[%clk 0:02:56]} 4. e3 {[%clk 0:03:01]}  e6 {[%clk 0:02:55]} 5. a3 {[%clk 0:03:01]}  c5 {[%clk 0:02:53]} 6. Nf3 {[%clk 0:03:02]}  Nc6 {[%clk 0:02:53]} 7. h3 {[%clk 0:03:02]}  Bd6 {[%clk 0:02:52]} 8. dxc5 {[%clk 0:03:02]}  Bxc5 {[%clk 0:02:52]} 9. Bd3 {[%clk 0:03:03]}  Bd6 {[%clk 0:02:52]} 10. Bxd6 {[%clk 0:03:02]}  Qxd6 {[%clk 0:02:52]} 11. O-O {[%clk 0:03:02]}  O-O {[%clk 0:02:47]} 12. e4 {[%clk 0:03:02]}  d4 {[%clk 0:02:47]} 13. Ne2 {[%clk 0:03:02]}  e5 {[%clk 0:02:48]} 14. Ng3 {[%clk 0:03:02]}  Be6 {[%clk 0:02:42]} 15. Nh4 {[%clk 0:03:02]}  Rfe8 {[%clk 0:02:34]} 16. Qd2 {[%clk 0:03:01]}  Rad8 {[%clk 0:02:13]} 17. f4 {[%clk 0:02:52]}  exf4 {[%clk 0:02:11]} 18. Rxf4 {[%clk 0:02:53]}  Kh8 {[%clk 0:01:26]} 19. Raf1 {[%clk 0:02:48]}  Ng8 {[%clk 0:01:25]} 20. e5 {[%clk 0:02:12]}  Nxe5 {[%clk 0:01:17]} 21. Ngf5 {[%clk 0:01:30]}  Qf8 {[%clk 0:01:08]} 22. Nxd4 {[%clk 0:00:57]}  Rd6 {[%clk 0:00:55]} 23. Nhf5 {[%clk 0:00:51]}  Bxf5 {[%clk 0:00:53]} 24. Nxf5 {[%clk 0:00:52]}  Rdd8 {[%clk 0:00:49]} 25. Kh1 {[%clk 0:00:42]}  Nxd3 {[%clk 0:00:48]} 26. cxd3 {[%clk 0:00:42]}  f6 {[%clk 0:00:43]} 27. d4 {[%clk 0:00:37]}  Ne7 {[%clk 0:00:42]} 28. Ng3 {[%clk 0:00:28]}  Nd5 {[%clk 0:00:39]} 29. R4f3 {[%clk 0:00:28]}  Qf7 {[%clk 0:00:32]} 30. Qf2 {[%clk 0:00:24]}  Re6 {[%clk 0:00:29]} 31. Nf5 {[%clk 0:00:23]}  Rde8 {[%clk 0:00:27]} 32. Qg3 {[%clk 0:00:24]}  Qd7 {[%clk 0:00:22]} 33. b4 {[%clk 0:00:20]}  g6 {[%clk 0:00:20]} 34. Nh6 {[%clk 0:00:17]}  f5 {[%clk 0:00:20]} 35. Nxf5 {[%clk 0:00:17]}  gxf5 {[%clk 0:00:18]} 36. Rxf5 {[%clk 0:00:18]}  Re1 {[%clk 0:00:15]} 37. Kh2 {[%clk 0:00:06]}  Rxf1 {[%clk 0:00:15]} 38. Rxf1 {[%clk 0:00:07]}  Qc7 {[%clk 0:00:11]} 39. Qxc7 {[%clk 0:00:07]}  Nxc7 {[%clk 0:00:11]} 40. Rf7 {[%clk 0:00:08]}  Nb5 {[%clk 0:00:08]} 41. d5 {[%clk 0:00:07]}  Rd8 {[%clk 0:00:06]} 42. Rxb7 {[%clk 0:00:08]}  Rxd5 {[%clk 0:00:06]} 43. a4 {[%clk 0:00:08]}  Nc3 {[%clk 0:00:06]} 44. a5 {[%clk 0:00:08]}  Rb5 {[%clk 0:00:05]} 45. Rb6 {[%clk 0:00:08]}  Nd5 {[%clk 0:00:03]} 46. Rxa6 {[%clk 0:00:08]}  Nxb4 {[%clk 0:00:04]} 47. Rb6 {[%clk 0:00:06]}  Rxb6 {[%clk 0:00:02]} 48. axb6 {[%clk 0:00:07]}  Nc6 {[%clk 0:00:03]} 49. b7 {[%clk 0:00:08]}  Kg7 {[%clk 0:00:03]} 50. Kg3 {[%clk 0:00:09]}  Kg6 {[%clk 0:00:04]} 51. Kg4 {[%clk 0:00:08]}  h5+ {[%clk 0:00:04]} 52. Kf4 {[%clk 0:00:06]}  Kf6 {[%clk 0:00:04]} 53. h4 {[%clk 0:00:05]}  Nb8 {[%clk 0:00:04]} 54. Ke4 {[%clk 0:00:03]}  Ke6 {[%clk 0:00:04]} 55. Kf4 {[%clk 0:00:02]}  Kf6 {[%clk 0:00:05]} 56. g3 {[%clk 0:00:02]}  Nc6 {[%clk 0:00:04]} 57. Ke4 {[%clk 0:00:02]}  Nb8 {[%clk 0:00:04]} 58. Kf4 {[%clk 0:00:02]}  Nc6 {[%clk 0:00:04]} 59. g4 {[%clk 0:00:03]}  hxg4 {[%clk 0:00:04]} 60. Kxg4 {[%clk 0:00:04]}  Kg6 {[%clk 0:00:04]} 61. h5+ {[%clk 0:00:04]}  Kh6 {[%clk 0:00:04]} 62. Kh4 {[%clk 0:00:05]}  Nb8 {[%clk 0:00:04]} 63. Kg4 {[%clk 0:00:05]}  Nc6 {[%clk 0:00:05]} 64. Kf5 {[%clk 0:00:06]}  Kxh5 {[%clk 0:00:05]} 65. Ke4 {[%clk 0:00:07]}  Nb8 {[%clk 0:00:05]} 66. Kd5 {[%clk 0:00:08]}  Kg5 {[%clk 0:00:06]} 67. Kc5 {[%clk 0:00:08]}  Kf5 {[%clk 0:00:06]} 68. Kb6 {[%clk 0:00:09]}  Ke6 {[%clk 0:00:06]} 69. Kc7 {[%clk 0:00:10]}  Na6+ {[%clk 0:00:06]} 70. Kc6 {[%clk 0:00:10]}  Nb8+ {[%clk 0:00:06]} 71. Kb6 {[%clk 0:00:11]}  Kd6 {[%clk 0:00:06]} 72. Kb5 {[%clk 0:00:11]}  Kc7 {[%clk 0:00:07]} 73. Kc4 {[%clk 0:00:12]}  Kxb7 {[%clk 0:00:08]} 1/2-1/2


[Site "https://www.chess.com"]

[Event "Titled Tuesday Blitz July 05 Early 2022"]
[White "Cherniaiev, Tykhon"]
[Black "Maghsoodloo, Parham"]
[WhiteFideId "14182360"]
[BlackFideId "12539929"]
[WhiteElo "2263"]
[BlackElo "2607"]
[Result "1-0"]
[Round "04"]
[TimeControl "180+1"]
[Date "2022.07.05"]
[WhiteClock "0:00:03"]
[BlackClock "0:00:02"]

1. Nf3 {[%clk 0:03:00]}  d5 {[%clk 0:02:58]} 2. d4 {[%clk 0:03:00]}  Nf6 {[%clk 0:02:56]} 3. c4 {[%clk 0:03:00]}  e6 {[%clk 0:02:56]} 4. g3 {[%clk 0:03:00]}  Bb4+ {[%clk 0:02:52]} 5. Bd2 {[%clk 0:03:00]}  a5 {[%clk 0:02:52]} 6. Qc2 {[%clk 0:02:58]}  b6 {[%clk 0:02:45]} 7. Bg2 {[%clk 0:02:56]}  O-O {[%clk 0:02:42]} 8. O-O {[%clk 0:02:56]}  Ba6 {[%clk 0:02:41]} 9. a3 {[%clk 0:02:56]}  Bxd2 {[%clk 0:02:40]} 10. Nbxd2 {[%clk 0:02:57]}  c6 {[%clk 0:02:34]} 11. Rfd1 {[%clk 0:02:54]}  Nbd7 {[%clk 0:02:28]} 12. Rac1 {[%clk 0:02:53]}  b5 {[%clk 0:02:07]} 13. c5 {[%clk 0:02:32]}  b4 {[%clk 0:02:05]} 14. e4 {[%clk 0:02:29]}  Rb8 {[%clk 0:01:53]} 15. e5 {[%clk 0:02:22]}  Ne8 {[%clk 0:01:42]} 16. a4 {[%clk 0:02:22]}  f6 {[%clk 0:01:32]} 17. exf6 {[%clk 0:02:16]}  gxf6 {[%clk 0:01:31]} 18. Re1 {[%clk 0:02:13]}  Ng7 {[%clk 0:01:31]} 19. Bh3 {[%clk 0:02:09]}  Re8 {[%clk 0:01:27]} 20. Nh4 {[%clk 0:02:08]}  e5 {[%clk 0:01:26]} 21. Nb3 {[%clk 0:02:01]}  e4 {[%clk 0:01:24]} 22. Nxa5 {[%clk 0:01:57]}  Qc7 {[%clk 0:00:50]} 23. Qd2 {[%clk 0:01:52]}  Nf8 {[%clk 0:00:45]} 24. Nb3 {[%clk 0:01:47]}  Ng6 {[%clk 0:00:44]} 25. Nf5 {[%clk 0:01:43]}  Bc8 {[%clk 0:00:43]} 26. Nxg7 {[%clk 0:01:33]}  Kxg7 {[%clk 0:00:43]} 27. Bxc8 {[%clk 0:01:33]}  Qxc8 {[%clk 0:00:43]} 28. Qe2 {[%clk 0:01:21]}  f5 {[%clk 0:00:36]} 29. f4 {[%clk 0:01:14]}  exf3 {[%clk 0:00:30]} 30. Qxf3 {[%clk 0:01:14]}  Re4 {[%clk 0:00:30]} 31. a5 {[%clk 0:01:12]}  Qe6 {[%clk 0:00:24]} 32. Rxe4 {[%clk 0:00:57]}  dxe4 {[%clk 0:00:24]} 33. Qe3 {[%clk 0:00:57]}  f4 {[%clk 0:00:22]} 34. gxf4 {[%clk 0:00:57]}  Rg8 {[%clk 0:00:18]} 35. Kh1 {[%clk 0:00:54]}  Kh8 {[%clk 0:00:14]} 36. Nd2 {[%clk 0:00:28]}  Re8 {[%clk 0:00:13]} 37. a6 {[%clk 0:00:24]}  Nh4 {[%clk 0:00:10]} 38. a7 {[%clk 0:00:16]}  Qd7 {[%clk 0:00:05]} 39. d5 {[%clk 0:00:08]}  Nf5 {[%clk 0:00:04]} 40. Qxe4 {[%clk 0:00:05]}  Rxe4 {[%clk 0:00:03]} 41. a8=Q+ {[%clk 0:00:05]}  Re8 {[%clk 0:00:04]} 42. Qxc6 {[%clk 0:00:06]}  Qf7 {[%clk 0:00:03]} 43. Nf3 {[%clk 0:00:05]}  Rf8 {[%clk 0:00:02]} 44. Ne5 {[%clk 0:00:02]}  Qh5 {[%clk 0:00:02]} 45. Rg1 {[%clk 0:00:03]} 1-0


[Site "https://www.chess.com"]

[Event "Titled Tuesday Blitz July 05 Early 2022"]
[White "Dubov, Daniil"]
[Black "Jubin Jimmy"]
[WhiteFideId "24126055"]
[BlackFideId "46686614"]
[WhiteElo "2791"]
[BlackElo "2219"]
[Result "1-0"]
[Round "04"]
[TimeControl "180+1"]
[Date "2022.07.05"]
[WhiteClock "0:00:05"]
[BlackClock "0:00:12"]

1. c4 {[%clk 0:03:00]}  e6 {[%clk 0:02:59]} 2. Nc3 {[%clk 0:02:59]}  d5 {[%clk 0:02:59]} 3. d4 {[%clk 0:02:59]}  Nf6 {[%clk 0:02:59]} 4. cxd5 {[%clk 0:02:58]}  exd5 {[%clk 0:03:00]} 5. Bg5 {[%clk 0:02:58]}  Be7 {[%clk 0:02:59]} 6. e3 {[%clk 0:02:57]}  O-O {[%clk 0:02:59]} 7. Bd3 {[%clk 0:02:55]}  c6 {[%clk 0:02:56]} 8. Nge2 {[%clk 0:02:54]}  Nbd7 {[%clk 0:02:56]} 9. O-O {[%clk 0:02:52]}  Re8 {[%clk 0:02:56]} 10. Qc2 {[%clk 0:02:47]}  h6 {[%clk 0:02:55]} 11. Bh4 {[%clk 0:02:46]}  Nf8 {[%clk 0:02:55]} 12. Rad1 {[%clk 0:02:42]}  Be6 {[%clk 0:02:48]} 13. h3 {[%clk 0:02:38]}  Nh5 {[%clk 0:02:35]} 14. Bxe7 {[%clk 0:02:36]}  Qxe7 {[%clk 0:02:36]} 15. Nc1 {[%clk 0:02:34]}  Bd7 {[%clk 0:02:26]} 16. Nb3 {[%clk 0:02:29]}  Ne6 {[%clk 0:02:14]} 17. f4 {[%clk 0:02:10]}  Qh4 {[%clk 0:02:02]} 18. Qf2 {[%clk 0:02:06]}  Qxf2+ {[%clk 0:01:54]} 19. Kxf2 {[%clk 0:02:05]}  Nf6 {[%clk 0:01:53]} 20. g4 {[%clk 0:02:02]}  Re7 {[%clk 0:01:53]} 21. Nd2 {[%clk 0:01:43]}  Ne8 {[%clk 0:01:35]} 22. Nf3 {[%clk 0:01:39]}  Nd6 {[%clk 0:01:31]} 23. h4 {[%clk 0:01:32]}  Rae8 {[%clk 0:01:26]} 24. g5 {[%clk 0:01:30]}  h5 {[%clk 0:01:23]} 25. Ne5 {[%clk 0:01:26]}  Nf8 {[%clk 0:01:23]} 26. Nxd7 {[%clk 0:00:48]}  Nxd7 {[%clk 0:01:14]} 27. Rfe1 {[%clk 0:00:46]}  f5 {[%clk 0:01:07]} 28. Nb1 {[%clk 0:00:40]}  g6 {[%clk 0:01:04]} 29. Nd2 {[%clk 0:00:39]}  Kf7 {[%clk 0:00:58]} 30. Nf3 {[%clk 0:00:37]}  Ne4+ {[%clk 0:00:51]} 31. Kg2 {[%clk 0:00:37]}  Ke6 {[%clk 0:00:44]} 32. Rc1 {[%clk 0:00:26]}  Nb6 {[%clk 0:00:34]} 33. Ne5 {[%clk 0:00:24]}  Rg7 {[%clk 0:00:31]} 34. Bxe4 {[%clk 0:00:23]}  fxe4 {[%clk 0:00:24]} 35. b3 {[%clk 0:00:20]}  Kf5 {[%clk 0:00:20]} 36. Rc2 {[%clk 0:00:19]}  Nd7 {[%clk 0:00:20]} 37. Nxd7 {[%clk 0:00:17]}  Rxd7 {[%clk 0:00:21]} 38. Kg3 {[%clk 0:00:17]}  Rc7 {[%clk 0:00:20]} 39. Rec1 {[%clk 0:00:17]}  Rec8 {[%clk 0:00:20]} 40. b4 {[%clk 0:00:16]}  b6 {[%clk 0:00:15]} 41. a4 {[%clk 0:00:16]}  a6 {[%clk 0:00:16]} 42. b5 {[%clk 0:00:09]}  axb5 {[%clk 0:00:14]} 43. axb5 {[%clk 0:00:09]}  c5 {[%clk 0:00:14]} 44. dxc5 {[%clk 0:00:09]}  Rxc5 {[%clk 0:00:13]} 45. Rxc5 {[%clk 0:00:09]}  bxc5 {[%clk 0:00:14]} 46. b6 {[%clk 0:00:07]}  c4 {[%clk 0:00:14]} 47. Rb1 {[%clk 0:00:05]}  Ke6 {[%clk 0:00:13]} 48. b7 {[%clk 0:00:05]}  Rb8 {[%clk 0:00:14]} 49. Rb6+ {[%clk 0:00:05]}  Kd7 {[%clk 0:00:14]} 50. f5 {[%clk 0:00:04]}  c3 {[%clk 0:00:13]} 51. Rb3 {[%clk 0:00:03]}  c2 {[%clk 0:00:11]} 52. Rc3 {[%clk 0:00:03]}  Rxb7 {[%clk 0:00:12]} 53. Rxc2 {[%clk 0:00:04]}  gxf5 {[%clk 0:00:13]} 54. Kf4 {[%clk 0:00:04]}  Rb3 {[%clk 0:00:13]} 55. g6 {[%clk 0:00:04]}  d4 {[%clk 0:00:13]} 56. Rg2 {[%clk 0:00:04]}  Rb8 {[%clk 0:00:09]} 57. g7 {[%clk 0:00:05]}  Rg8 {[%clk 0:00:10]} 58. exd4 {[%clk 0:00:05]}  Ke6 {[%clk 0:00:10]} 59. d5+ {[%clk 0:00:05]}  Kxd5 {[%clk 0:00:10]} 60. Kxf5 {[%clk 0:00:05]}  e3 {[%clk 0:00:10]} 61. Kf6 {[%clk 0:00:05]}  Ke4 {[%clk 0:00:10]} 62. Kf7 {[%clk 0:00:05]}  Ra8 {[%clk 0:00:11]} 63. g8=Q {[%clk 0:00:05]}  Rxg8 {[%clk 0:00:11]} 64. Rxg8 {[%clk 0:00:04]}  e2 {[%clk 0:00:12]} 65. Re8+ {[%clk 0:00:04]}  Kf3 {[%clk 0:00:12]} 66. Kg6 {[%clk 0:00:05]} 1-0


[Site "https://www.chess.com"]

[Event "Titled Tuesday Blitz July 05 Early 2022"]
[White "Garcia Ramos, Daniel"]
[Black "Deac, Bogdan-Daniel"]
[WhiteFideId "32010311"]
[BlackFideId "1226380"]
[WhiteElo "2268"]
[BlackElo "2648"]
[Result "0-1"]
[Round "04"]
[TimeControl "180+1"]
[Date "2022.07.05"]
[WhiteClock "0:01:54"]
[BlackClock "0:02:04"]

1. e4 {[%clk 0:02:52]}  c6 {[%clk 0:02:58]} 2. d4 {[%clk 0:02:51]}  d5 {[%clk 0:02:59]} 3. Nc3 {[%clk 0:02:52]}  a6 {[%clk 0:02:58]} 4. h3 {[%clk 0:02:47]}  b5 {[%clk 0:02:53]} 5. e5 {[%clk 0:02:45]}  Bf5 {[%clk 0:02:52]} 6. Nf3 {[%clk 0:02:43]}  e6 {[%clk 0:02:51]} 7. Bd3 {[%clk 0:02:42]}  Bxd3 {[%clk 0:02:45]} 8. Qxd3 {[%clk 0:02:43]}  c5 {[%clk 0:02:46]} 9. O-O {[%clk 0:02:40]}  Nc6 {[%clk 0:02:43]} 10. dxc5 {[%clk 0:02:39]}  Bxc5 {[%clk 0:02:44]} 11. a3 {[%clk 0:02:38]}  Nge7 {[%clk 0:02:41]} 12. Bg5 {[%clk 0:02:35]}  Qc7 {[%clk 0:02:39]} 13. b4 {[%clk 0:02:32]}  Bb6 {[%clk 0:02:35]} 14. Rfe1 {[%clk 0:02:31]}  Ng6 {[%clk 0:02:33]} 15. Rad1 {[%clk 0:02:20]}  O-O {[%clk 0:02:29]} 16. h4 {[%clk 0:02:16]}  Ncxe5 {[%clk 0:02:28]} 17. Nxe5 {[%clk 0:02:16]}  Nxe5 {[%clk 0:02:29]} 18. Qg3 {[%clk 0:02:16]}  Ng6 {[%clk 0:02:21]} 19. Qf3 {[%clk 0:02:14]}  h6 {[%clk 0:02:17]} 20. h5 {[%clk 0:02:07]}  hxg5 {[%clk 0:02:17]} 21. hxg6 {[%clk 0:02:04]}  fxg6 {[%clk 0:02:17]} 22. Nxd5 {[%clk 0:02:01]}  exd5 {[%clk 0:02:10]} 23. Qxd5+ {[%clk 0:02:01]}  Qf7 {[%clk 0:02:11]} 24. Re2 {[%clk 0:01:59]}  Rad8 {[%clk 0:02:04]} 25. Qxf7+ {[%clk 0:01:55]}  Kxf7 {[%clk 0:02:05]} 26. Rde1 {[%clk 0:01:55]}  Rfe8 {[%clk 0:02:05]} 27. Kf1 {[%clk 0:01:54]}  Rxe2 {[%clk 0:02:04]} 0-1


[Site "https://www.chess.com"]

[Event "Titled Tuesday Blitz July 05 Early 2022"]
[White "Jobava, Baadur"]
[Black "Aloma Vidal, Robert"]
[WhiteFideId "13601520"]
[BlackFideId "2260409"]
[WhiteElo "2617"]
[BlackElo "2435"]
[Result "1-0"]
[Round "04"]
[TimeControl "180+1"]
[Date "2022.07.05"]
[WhiteClock "0:02:38"]
[BlackClock "0:01:09"]

1. b3 {[%clk 0:02:59]}  e5 {[%clk 0:02:51]} 2. Bb2 {[%clk 0:03:00]}  Nc6 {[%clk 0:02:47]} 3. Nf3 {[%clk 0:03:00]}  e4 {[%clk 0:02:44]} 4. Nd4 {[%clk 0:03:00]}  Nf6 {[%clk 0:02:43]} 5. e3 {[%clk 0:03:00]}  Nxd4 {[%clk 0:02:37]} 6. Bxd4 {[%clk 0:03:01]}  c5 {[%clk 0:02:34]} 7. Bb2 {[%clk 0:03:00]}  Be7 {[%clk 0:02:29]} 8. c4 {[%clk 0:02:59]}  O-O {[%clk 0:02:26]} 9. Nc3 {[%clk 0:02:59]}  b6 {[%clk 0:02:16]} 10. d4 {[%clk 0:02:58]}  exd3 {[%clk 0:02:09]} 11. Bxd3 {[%clk 0:02:57]}  Bb7 {[%clk 0:02:09]} 12. e4 {[%clk 0:02:56]}  Re8 {[%clk 0:01:59]} 13. O-O {[%clk 0:02:54]}  Bd6 {[%clk 0:01:53]} 14. f4 {[%clk 0:02:43]}  Qc7 {[%clk 0:01:09]} 15. Nb5 {[%clk 0:02:38]} 1-0


[Site "https://www.chess.com"]

[Event "Titled Tuesday Blitz July 05 Early 2022"]
[White "Kamsky, Gata"]
[Black "Rosen, Eric"]
[WhiteFideId "2000024"]
[BlackFideId "2032562"]
[WhiteElo "2645"]
[BlackElo "2362"]
[Result "1-0"]
[Round "04"]
[TimeControl "180+1"]
[Date "2022.07.05"]
[WhiteClock "0:00:15"]
[BlackClock "0:00:01"]

1. e4 {[%clk 0:03:00]}  c5 {[%clk 0:02:51]} 2. Nf3 {[%clk 0:02:57]}  e6 {[%clk 0:02:51]} 3. g3 {[%clk 0:02:47]}  Nc6 {[%clk 0:02:50]} 4. Bg2 {[%clk 0:02:46]}  Nf6 {[%clk 0:02:49]} 5. Qe2 {[%clk 0:02:35]}  e5 {[%clk 0:02:48]} 6. O-O {[%clk 0:02:33]}  Be7 {[%clk 0:02:48]} 7. c3 {[%clk 0:02:27]}  O-O {[%clk 0:02:48]} 8. a3 {[%clk 0:02:05]}  d5 {[%clk 0:02:23]} 9. exd5 {[%clk 0:02:00]}  Qxd5 {[%clk 0:02:23]} 10. d3 {[%clk 0:01:50]}  Bf5 {[%clk 0:02:07]} 11. Ne1 {[%clk 0:01:40]}  Qe6 {[%clk 0:02:03]} 12. Nd2 {[%clk 0:01:37]}  Bd6 {[%clk 0:01:51]} 13. b4 {[%clk 0:01:36]}  Rac8 {[%clk 0:01:42]} 14. Bb2 {[%clk 0:01:35]}  Rfe8 {[%clk 0:01:42]} 15. b5 {[%clk 0:01:30]}  Na5 {[%clk 0:01:40]} 16. c4 {[%clk 0:01:28]}  b6 {[%clk 0:01:34]} 17. Bc3 {[%clk 0:00:48]}  Rcd8 {[%clk 0:01:20]} 18. Rc1 {[%clk 0:00:39]}  h5 {[%clk 0:01:17]} 19. Bxa5 {[%clk 0:00:36]}  bxa5 {[%clk 0:01:18]} 20. Ne4 {[%clk 0:00:34]}  Nxe4 {[%clk 0:00:53]} 21. dxe4 {[%clk 0:00:32]}  Bg6 {[%clk 0:00:53]} 22. Nc2 {[%clk 0:00:31]}  Be7 {[%clk 0:00:48]} 23. h4 {[%clk 0:00:31]}  a4 {[%clk 0:00:43]} 24. Rcd1 {[%clk 0:00:30]}  f6 {[%clk 0:00:33]} 25. Rd5 {[%clk 0:00:26]}  Bf7 {[%clk 0:00:33]} 26. Ne3 {[%clk 0:00:25]}  Bf8 {[%clk 0:00:25]} 27. Rfd1 {[%clk 0:00:25]}  Qb6 {[%clk 0:00:23]} 28. Rxd8 {[%clk 0:00:24]}  Rxd8 {[%clk 0:00:24]} 29. Nd5 {[%clk 0:00:24]}  Qa5 {[%clk 0:00:25]} 30. Bf3 {[%clk 0:00:23]}  Bxd5 {[%clk 0:00:20]} 31. exd5 {[%clk 0:00:23]}  g6 {[%clk 0:00:21]} 32. Be4 {[%clk 0:00:21]}  f5 {[%clk 0:00:16]} 33. Bxf5 {[%clk 0:00:20]}  gxf5 {[%clk 0:00:14]} 34. Qxh5 {[%clk 0:00:20]}  f4 {[%clk 0:00:09]} 35. Qg5+ {[%clk 0:00:20]}  Bg7 {[%clk 0:00:10]} 36. h5 {[%clk 0:00:20]}  Kh8 {[%clk 0:00:05]} 37. h6 {[%clk 0:00:20]}  Rg8 {[%clk 0:00:03]} 38. hxg7+ {[%clk 0:00:20]}  Rxg7 {[%clk 0:00:04]} 39. Qxe5 {[%clk 0:00:18]}  fxg3 {[%clk 0:00:04]} 40. fxg3 {[%clk 0:00:17]}  a6 {[%clk 0:00:02]} 41. Rf1 {[%clk 0:00:16]}  Qc7 {[%clk 0:00:01]} 42. Rf8+ {[%clk 0:00:15]}  Kh7 {[%clk 0:00:01]} 43. Qh5# {[%clk 0:00:15]} 1-0


[Site "https://www.chess.com"]

[Event "Titled Tuesday Blitz July 05 Early 2022"]
[White "Kovalev, Vladislav"]
[Black "Kozlov, Oleg"]
[WhiteFideId "13504398"]
[BlackFideId "4104544"]
[WhiteElo "2530"]
[BlackElo "2132"]
[Result "1-0"]
[Round "04"]
[TimeControl "180+1"]
[Date "2022.07.05"]
[WhiteClock "0:00:07"]
[BlackClock "0:00:04"]

1. e4 {[%clk 0:02:37]}  c6 {[%clk 0:02:59]} 2. Nf3 {[%clk 0:02:37]}  d5 {[%clk 0:03:00]} 3. d3 {[%clk 0:02:37]}  g6 {[%clk 0:02:57]} 4. Nbd2 {[%clk 0:02:35]}  Bg7 {[%clk 0:02:57]} 5. g3 {[%clk 0:02:35]}  e5 {[%clk 0:02:53]} 6. Bg2 {[%clk 0:02:33]}  Ne7 {[%clk 0:02:51]} 7. O-O {[%clk 0:02:26]}  O-O {[%clk 0:02:52]} 8. Re1 {[%clk 0:02:26]}  d4 {[%clk 0:02:38]} 9. Nc4 {[%clk 0:02:25]}  Qc7 {[%clk 0:02:33]} 10. a4 {[%clk 0:02:20]}  Nd7 {[%clk 0:02:17]} 11. c3 {[%clk 0:02:20]}  c5 {[%clk 0:02:14]} 12. cxd4 {[%clk 0:02:19]}  cxd4 {[%clk 0:02:14]} 13. b4 {[%clk 0:02:19]}  Nb6 {[%clk 0:02:01]} 14. Nxb6 {[%clk 0:01:30]}  Qxb6 {[%clk 0:01:53]} 15. Ba3 {[%clk 0:01:30]}  Bd7 {[%clk 0:01:46]} 16. b5 {[%clk 0:01:10]}  Rfe8 {[%clk 0:01:45]} 17. Qb3 {[%clk 0:01:03]}  a6 {[%clk 0:01:29]} 18. Ng5 {[%clk 0:00:49]}  Qf6 {[%clk 0:01:27]} 19. f4 {[%clk 0:00:48]}  exf4 {[%clk 0:01:03]} 20. gxf4 {[%clk 0:00:48]}  h6 {[%clk 0:00:47]} 21. e5 {[%clk 0:00:43]}  Qxf4 {[%clk 0:00:46]} 22. Nxf7 {[%clk 0:00:29]}  Kh7 {[%clk 0:00:32]} 23. e6 {[%clk 0:00:28]}  Bc8 {[%clk 0:00:23]} 24. Nd6 {[%clk 0:00:28]}  Rd8 {[%clk 0:00:19]} 25. Nxc8 {[%clk 0:00:26]}  Nxc8 {[%clk 0:00:19]} 26. e7 {[%clk 0:00:26]}  Re8 {[%clk 0:00:19]} 27. Bxb7 {[%clk 0:00:23]}  Rb8 {[%clk 0:00:18]} 28. bxa6 {[%clk 0:00:18]}  Be5 {[%clk 0:00:13]} 29. Qc2 {[%clk 0:00:18]}  Nxe7 {[%clk 0:00:10]} 30. Re4 {[%clk 0:00:19]}  Qf5 {[%clk 0:00:09]} 31. Rf1 {[%clk 0:00:17]}  Qg5+ {[%clk 0:00:09]} 32. Qg2 {[%clk 0:00:18]}  Qxg2+ {[%clk 0:00:09]} 33. Kxg2 {[%clk 0:00:19]}  Nf5 {[%clk 0:00:10]} 34. Bc6 {[%clk 0:00:13]}  Re6 {[%clk 0:00:10]} 35. a7 {[%clk 0:00:13]}  Rxc6 {[%clk 0:00:08]} 36. Rxe5 {[%clk 0:00:07]}  Ra8 {[%clk 0:00:08]} 37. Bc5 {[%clk 0:00:07]}  Ra6 {[%clk 0:00:08]} 38. Ra1 {[%clk 0:00:05]}  Rc6 {[%clk 0:00:07]} 39. Kf3 {[%clk 0:00:05]}  Kg7 {[%clk 0:00:07]} 40. Ke4 {[%clk 0:00:04]}  Kf6 {[%clk 0:00:08]} 41. a5 {[%clk 0:00:04]}  h5 {[%clk 0:00:05]} 42. Bxd4 {[%clk 0:00:02]}  Nxd4 {[%clk 0:00:05]} 43. Kxd4 {[%clk 0:00:03]}  Rd8+ {[%clk 0:00:06]} 44. Rd5 {[%clk 0:00:03]}  Rxd5+ {[%clk 0:00:05]} 45. Kxd5 {[%clk 0:00:04]}  Ra6 {[%clk 0:00:05]} 46. a8=Q {[%clk 0:00:04]}  Rxa8 {[%clk 0:00:06]} 47. a6 {[%clk 0:00:05]}  g5 {[%clk 0:00:06]} 48. d4 {[%clk 0:00:05]}  g4 {[%clk 0:00:06]} 49. Ke4 {[%clk 0:00:05]}  Kg5 {[%clk 0:00:06]} 50. Ra5+ {[%clk 0:00:05]}  Kg6 {[%clk 0:00:06]} 51. a7 {[%clk 0:00:05]}  h4 {[%clk 0:00:07]} 52. Kf4 {[%clk 0:00:05]}  g3 {[%clk 0:00:06]} 53. hxg3 {[%clk 0:00:06]}  h3 {[%clk 0:00:07]} 54. Ra6+ {[%clk 0:00:06]}  Kg7 {[%clk 0:00:07]} 55. Ra2 {[%clk 0:00:05]}  h2 {[%clk 0:00:04]} 56. Rxh2 {[%clk 0:00:06]}  Rxa7 {[%clk 0:00:04]} 57. Rh5 {[%clk 0:00:06]}  Rf7+ {[%clk 0:00:04]} 58. Rf5 {[%clk 0:00:06]}  Rd7 {[%clk 0:00:05]} 59. d5 {[%clk 0:00:06]}  Kg6 {[%clk 0:00:06]} 60. g4 {[%clk 0:00:07]}  Kg7 {[%clk 0:00:06]} 61. Ke5 {[%clk 0:00:08]}  Re7+ {[%clk 0:00:04]} 62. Kd6 {[%clk 0:00:08]}  Re1 {[%clk 0:00:05]} 63. Kd7 {[%clk 0:00:08]}  Kg6 {[%clk 0:00:04]} 64. d6 {[%clk 0:00:06]}  Re4 {[%clk 0:00:05]} 65. Rf1 {[%clk 0:00:06]}  Rxg4 {[%clk 0:00:05]} 66. Kc6 {[%clk 0:00:06]}  Rc4+ {[%clk 0:00:05]} 67. Kd5 {[%clk 0:00:07]}  Rc2 {[%clk 0:00:05]} 68. d7 {[%clk 0:00:07]}  Rd2+ {[%clk 0:00:06]} 69. Kc6 {[%clk 0:00:08]}  Kg7 {[%clk 0:00:06]} 70. Rf5 {[%clk 0:00:06]}  Rc2+ {[%clk 0:00:04]} 71. Rc5 {[%clk 0:00:06]}  Rd2 {[%clk 0:00:05]} 72. Rd5 {[%clk 0:00:06]}  Rc2+ {[%clk 0:00:04]} 73. Kd6 {[%clk 0:00:07]} 1-0


[Site "https://www.chess.com"]